fUSD/lending_fUSD_20251001
["ID","MTS","AMOUNT","RATE_DAILY","PERIOD"]
[388693576,1759320639682,-500.0,0.00021917,2]
[388693578,1759320639691,-500.0,0.00021917,2]
[388693580,1759320639703,-500.0,0.00021917,2]
[388693582,1759320639712,-1392.6,0.00021917,2]
[388693584,1759320639721,-500.0,0.00021917,2]
[388693586,1759320639731,-500.0,0.00021917,2]
[388693588,1759320639740,-590.14,0.00021917,2]
[388693590,1759320639749,-500.0,0.00021917,2]
[388693592,1759320639759,-1192.14,0.00021917,2]
[388693594,1759320639768,-500.0,0.00021917,2]
[388693596,1759320639777,-1060.3,0.00021917,2]
[388693598,1759320639787,-500.0,0.00021917,2]
[388693600,1759320639796,-575.6,0.00021917,2]
[388693602,1759320639805,-500.0,0.00021917,2]
[388693604,1759320639815,-500.0,0.00021917,2]
[388693606,1759320639824,-500.0,0.00021917,2]
[388693608,1759320639833,-2009.63,0.00021917,2]
[388693610,1759320639842,-840.56,0.00021917,2]
[388693612,1759320639851,-500.0,0.00021917,2]
[388693614,1759320639861,-500.0,0.00021917,2]
[388693616,1759320639870,-2038.88,0.00021917,2]
[388693617,1759320639879,-500.0,0.00021917,2]
[388693619,1759320639888,-1120.89,0.00021917,2]
[388693621,1759320639897,-500.0,0.00021917,2]
[388693624,1759320639906,-1771.61,0.00021917,2]
[388693626,1759320639915,-571.1,0.00021917,2]
[388693628,1759320639924,-500.0,0.00021917,2]
[388693631,1759320639933,-2030.34,0.00021917,2]
[388693634,1759320639942,-656.88,0.00021917,2]
[388693637,1759320639951,-500.0,0.00021917,2]
[388693639,1759320639960,-512.59,0.00021917,2]
[388693640,1759320639969,-500.0,0.00021917,2]
[388693642,1759320639978,-500.0,0.00021917,2]
[388693644,1759320639987,-500.0,0.00021917,2]
[388693646,1759320639996,-542.75362087,0.00021917,2]
[388693648,1759320640005,-500.0,0.00021917,2]
[388693650,1759320640014,-1013.22,0.00021917,2]
[388693652,1759320640023,-134.71993166,0.00021917,2]
[388693655,1759320640040,-519.07829482,0.00021917,2]
[388693657,1759320640051,-87.29177352,0.00021917,2]
[388693659,1759320640060,-500.0,0.00021917,2]
[388693661,1759320640069,-1305.78744253,0.00021917,2]
[388693664,1759320640081,-499.86178415,0.00021917,2]
[388693666,1759320640092,-282.99077332,0.00021917,2]
[388693668,1759320640100,-550.93604615,0.00021917,2]
[388693670,1759320640112,-326.80395385,0.00021917,2]
[388693672,1759320640122,-394.45595127,0.00021917,2]
[388693675,1759320640141,-105.54404873,0.00021917,2]
[388693677,1759320640150,-500.0,0.00021917,2]
[388693679,1759320640160,-1211.47,0.00021917,2]
[388693681,1759320640170,-585.26,0.00021917,2]
[388693683,1759320640180,-1835.55,0.00021917,2]
[388693685,1759320640189,-500.0,0.00021917,2]
[388693687,1759320640198,-500.0,0.00021917,2]
[388693690,1759320640207,-1073.21,0.00021917,2]
[388693692,1759320640216,-500.0,0.00021917,2]
[388693694,1759320640225,-1567.27,0.00021917,2]
[388693696,1759320640235,-500.0,0.00021917,2]
[388693698,1759320640243,-500.0,0.00021917,2]
[388693700,1759320640252,-590.50893403,0.00021917,2]
[388693702,1759320640261,-1649.89,0.00021917,2]
[388693704,1759320640270,-299.36137371,0.00021917,2]
[388693706,1759320640279,-724.06,0.00021917,2]
[388693707,1759320640288,-1417.75,0.00021917,2]
[388693710,1759320640299,-500.0,0.00021917,2]
[388693712,1759320640310,-1997.21,0.00021917,2]
[388693714,1759320640319,-500.0,0.00021917,2]
[388693716,1759320640328,-1074.2,0.00021917,2]
[388693718,1759320640337,-500.0,0.00021917,2]
[388693720,1759320640346,-500.0,0.00021917,2]
[388693722,1759320640355,-696.5,0.00021917,2]
[388693724,1759320640364,-500.0,0.00021917,2]
[388693725,1759320640372,-1862.63,0.00021917,2]
[388693727,1759320640382,-1846.02,0.00021917,2]
[388693730,1759320640391,-2531.05,0.00021917,2]
[388693731,1759320640402,-500.0,0.00021917,2]
[388693733,1759320640412,-2443.6,0.00021917,2]
[388693736,1759320640423,-500.0,0.00021917,2]
[388693738,1759320640432,-500.0,0.00021917,2]
[388693740,1759320640441,-466.0496708,0.00021917,2]
[388693742,1759320640453,-1801.27,0.00021917,2]
[388693743,1759320640464,-1281.38,0.00021917,2]
[388693745,1759320640474,-627.51,0.00021917,2]
[388693747,1759320640483,-546.71,0.00021917,2]
[388693749,1759320640492,-1624.52,0.00021917,2]
[388693751,1759320640502,-3605.32,0.00021917,2]
[388693753,1759320640510,-514.99798099,0.00021917,2]
[388693755,1759320640520,-500.0,0.00021917,2]
[388693757,1759320640530,-500.0,0.00021917,2]
[388693759,1759320640540,-500.0,0.00021917,2]
[388693761,1759320640549,-1176.23,0.00021917,2]
[388693763,1759320640559,-1282.46,0.00021917,2]
[388693766,1759320640570,-500.0,0.00021917,2]
[388693768,1759320640580,-1522.21,0.00021917,2]
[388693770,1759320640590,-1429.93,0.00021917,2]
[388693772,1759320640600,-2277.85,0.00021917,2]
[388693774,1759320640610,-500.0,0.00021917,2]
[388693776,1759320640619,-500.0,0.00021917,2]
[388693778,1759320640627,-500.0,0.00021917,2]
[388693780,1759320640636,-500.0,0.00021917,2]
[388693782,1759320640645,-500.0,0.00021917,2]
[388693784,1759320640654,-818.66,0.00021917,2]
[388693786,1759320640663,-1323.32,0.00021917,2]
[388693787,1759320640672,-500.0,0.00021917,2]
[388693790,1759320640682,-500.0,0.00021917,2]
[388693792,1759320640691,-1300.83,0.00021917,2]
[388693794,1759320640700,-909.15,0.00021917,2]
[388693796,1759320640709,-500.0,0.00021917,2]
[388693797,1759320640718,-1278.0,0.00021917,2]
[388693800,1759320640727,-1315.91,0.00021917,2]
[388693801,1759320640736,-500.0,0.00021917,2]
[388693803,1759320640745,-500.0,0.00021917,2]
[388693805,1759320640755,-1267.61,0.00021917,2]
[388693807,1759320640764,-500.0,0.00021917,2]
[388693809,1759320640773,-2834.34,0.00021917,2]
[388693811,1759320640782,-2641.43,0.00021917,2]
[388693813,1759320640791,-2384.37,0.00021917,2]
[388693815,1759320640801,-500.0,0.00021917,2]
[388693818,1759320640810,-500.0,0.00021917,2]
[388693820,1759320640820,-2149.28,0.00021917,2]
[388693821,1759320640830,-500.0,0.00021917,2]
[388693824,1759320640839,-500.0,0.00021917,2]
[388693826,1759320640849,-629.45,0.00021917,2]
[388693828,1759320640859,-323.05223847,0.00021917,2]
[388693830,1759320640869,-833.05,0.00021917,2]
[388693832,1759320640878,-1361.66,0.00021917,2]
[388693834,1759320640888,-500.0,0.00021917,2]
[388693836,1759320640897,-500.0,0.00021917,2]
[388693838,1759320640906,-756.6,0.00021917,2]
[388693840,1759320640914,-500.0,0.00021917,2]
[388693842,1759320640924,-500.0,0.00021917,2]
[388693844,1759320640933,-610.17,0.00021917,2]
[388693846,1759320640943,-725.37,0.00021917,2]
[388693848,1759320640952,-24661.92,0.00021917,2]
[388693850,1759320640961,-3318.59,0.00021917,2]
[388693852,1759320640970,-500.0,0.00021917,2]
[388693854,1759320640979,-617.92,0.00021917,2]
[388693856,1759320640989,-1614.31,0.00021917,2]
[388693857,1759320640998,-1505.03,0.00021917,2]
[388693860,1759320641009,-500.0,0.00021917,2]
[388693862,1759320641018,-500.0,0.00021917,2]
[388693863,1759320641027,-500.0,0.00021917,2]
[388693865,1759320641036,-500.0,0.00021917,2]
[388693867,1759320641045,-1857.2,0.00021917,2]
[388693869,1759320641053,-500.0,0.00021917,2]
[388693871,1759320641062,-500.0,0.00021917,2]
[388693874,1759320641072,-500.0,0.00021917,2]
[388693876,1759320641082,-500.0,0.00021917,2]
[388693878,1759320641091,-500.0,0.00021917,2]
[388693880,1759320641100,-500.0,0.00021917,2]
[388693882,1759320641109,-500.0,0.00021917,2]
[388693884,1759320641122,-2277.18,0.00021917,2]
[388693886,1759320641131,-500.0,0.00021917,2]
[388693888,1759320641140,-500.0,0.00021917,2]
[388693890,1759320641149,-500.0,0.00021917,2]
[388693892,1759320641158,-500.0,0.00021917,2]
[388693894,1759320641167,-721.36,0.00021917,2]
[388693896,1759320641178,-561.19,0.00021917,2]
[388693898,1759320641187,-500.0,0.00021917,2]
[388693900,1759320641196,-500.0,0.00021917,2]
[388693902,1759320641205,-500.0,0.00021917,2]
[388693904,1759320641214,-1007.78,0.00021917,2]
[388693906,1759320641223,-21065.0,0.00021917,2]
[388693908,1759320641232,-500.0,0.00021917,2]
[388693910,1759320641241,-1150.97,0.00021917,2]
[388693912,1759320641250,-500.0,0.00021917,2]
[388693914,1759320641260,-1174.12,0.00021917,2]
[388693916,1759320641269,-980.62,0.00021917,2]
[388693918,1759320641278,-2337.53,0.00021917,2]
[388693920,1759320641287,-4488.28,0.00021917,2]
[388693922,1759320641296,-651.4,0.00021917,2]
[388693924,1759320641305,-500.0,0.00021917,2]
[388693927,1759320641323,-2482.44,0.00021917,2]
[388693929,1759320641332,-500.0,0.00021917,2]
[388693931,1759320641341,-2267.27,0.00021917,2]
[388693933,1759320641350,-500.0,0.00021917,2]
[388693935,1759320641359,-500.0,0.00021917,2]
[388693936,1759320641367,-3500.25,0.00021917,2]
[388693938,1759320641376,-500.0,0.00021917,2]
[388693940,1759320641385,-1308.17,0.00021917,2]
[388693942,1759320641394,-442.40416802,0.00021917,2]
[388693944,1759320641403,-500.0,0.00021917,2]
[388693946,1759320641413,-506.19,0.00021917,2]
[388693949,1759320641422,-714.99,0.00021917,2]
[388693950,1759320641431,-500.0,0.00021917,2]
[388693953,1759320641441,-500.0,0.00021917,2]
[388693955,1759320641450,-2533.87,0.00021917,2]
[388693957,1759320641464,-500.0,0.00021917,2]
[388693959,1759320641474,-2981.44,0.00021917,2]
[388693960,1759320641485,-1673.11,0.00021917,2]
[388693962,1759320641495,-500.0,0.00021917,2]
[388693964,1759320641505,-500.0,0.00021917,2]
[388693967,1759320641515,-1049.88,0.00021917,2]
[388693969,1759320641526,-213.07175013,0.00021917,2]
[388693971,1759320641536,-1383.75,0.00021917,2]
[388693972,1759320641545,-500.0,0.00021917,2]
[388693975,1759320641555,-2527.13,0.00021917,2]
[388693977,1759320641564,-930.4,0.00021917,2]
[388693978,1759320641574,-500.0,0.00021917,2]
[388693981,1759320641583,-500.0,0.00021917,2]
[388693983,1759320641594,-500.0,0.00021917,2]
[388693985,1759320641603,-2233.66,0.00021917,2]
[388693987,1759320641612,-500.0,0.00021917,2]
[388693989,1759320641622,-1955.73,0.00021917,2]
[388693991,1759320641631,-500.0,0.00021917,2]
[388693993,1759320641640,-500.0,0.00021917,2]
[388693995,1759320641650,-1936.63,0.00021917,2]
[388693997,1759320641659,-500.0,0.00021917,2]
[388693999,1759320641669,-500.0,0.00021917,2]
[388694001,1759320641678,-811.91,0.00021917,2]
[388694003,1759320641688,-556.9105279,0.00021917,2]
[388694005,1759320641696,-3676.73,0.00021917,2]
[388694007,1759320641706,-4092.87,0.00021917,2]
[388694009,1759320641716,-766.17,0.00021917,2]
[388694011,1759320641726,-500.0,0.00021917,2]
[388694013,1759320641737,-500.0,0.00021917,2]
[388694015,1759320641746,-500.0,0.00021917,2]
[388694017,1759320641756,-1519.64,0.00021917,2]
[388694019,1759320641765,-500.0,0.00021917,2]
[388694021,1759320641775,-527.31,0.00021917,2]
[388694023,1759320641784,-500.0,0.00021917,2]
[388694025,1759320641793,-2740.78,0.00021917,2]
[388694027,1759320641802,-4087.02,0.00021917,2]
[388694029,1759320641811,-4442.98,0.00021917,2]
[388694031,1759320641821,-2032.91,0.00021917,2]
[388694033,1759320641831,-2795.99,0.00021917,2]
[388694035,1759320641840,-525.64,0.00021917,2]
[388694037,1759320641849,-3597.2,0.00021917,2]
[388694039,1759320641859,-2840.0,0.00021917,2]
[388694041,1759320641868,-1660.32,0.00021917,2]
[388694043,1759320641879,-3213.6,0.00021917,2]
[388694045,1759320641888,-2460.78,0.00021917,2]
[388694047,1759320641897,-500.0,0.00021917,2]
[388694049,1759320641906,-590.08,0.00021917,2]
[388694051,1759320641915,-500.0,0.00021917,2]
[388694053,1759320641925,-500.0,0.00021917,2]
[388694055,1759320641935,-500.0,0.00021917,2]
[388694057,1759320641944,-2997.82,0.00021917,2]
[388694059,1759320641954,-500.0,0.00021917,2]
[388694061,1759320641963,-500.0,0.00021917,2]
[388694063,1759320641973,-500.0,0.00021917,2]
[388694065,1759320641982,-977.1,0.00021917,2]
[388694067,1759320641992,-500.0,0.00021917,2]
[388694069,1759320642001,-500.0,0.00021917,2]
[388694071,1759320642010,-1629.83,0.00021917,2]
[388694073,1759320642019,-500.0,0.00021917,2]
[388694075,1759320642028,-15259.55,0.00021917,2]
[388694077,1759320642038,-3006.48,0.00021917,2]
[388694079,1759320642048,-2510.44,0.00021917,2]
[388694081,1759320642058,-569.31,0.00021917,2]
[388694083,1759320642067,-500.0,0.00021917,2]
[388694085,1759320642076,-500.0,0.00021917,2]
[388694087,1759320642085,-500.0,0.00021917,2]
[388694089,1759320642095,-1520.71,0.00021917,2]
[388694091,1759320642104,-2286.1,0.00021917,2]
[388694093,1759320642114,-1460.78,0.00021917,2]
[388694122,1759320642363,-500.0,0.00021917,2]
[388694124,1759320642375,-602.27,0.00021917,2]
[388694126,1759320642385,-500.0,0.00021917,2]
[388694128,1759320642394,-500.0,0.00021917,2]
[388694130,1759320642404,-7300.92,0.00021917,2]
[388694132,1759320642415,-11051.58,0.00021917,2]
[388694135,1759320642424,-1068.09,0.00021917,2]
[388694137,1759320642434,-1185.94,0.00021917,2]
[388694139,1759320642444,-1061.84,0.00021917,2]
[388694142,1759320642458,-500.0,0.00021917,2]
[388694144,1759320642468,-500.0,0.00021917,2]
[388694146,1759320642477,-800.67,0.00021917,2]
[388694148,1759320642486,-7495.75,0.00021917,2]
[388694150,1759320642497,-2854.0,0.00021917,2]
[388694152,1759320642506,-2485.35,0.00021917,2]
[388694154,1759320642516,-500.0,0.00021917,2]
[388694156,1759320642527,-2357.31,0.00021917,2]
[388694158,1759320642536,-500.0,0.00021917,2]
[388694160,1759320642545,-904.67,0.00021917,2]
[388694162,1759320642555,-666.94,0.00021917,2]
[388694164,1759320642564,-798.84,0.00021917,2]
[388694166,1759320642573,-500.0,0.00021917,2]
[388694168,1759320642582,-2404.44,0.00021917,2]
[388694170,1759320642591,-2334.65,0.00021917,2]
[388694172,1759320642601,-500.0,0.00021917,2]
[388694174,1759320642611,-500.0,0.00021917,2]
[388694176,1759320642621,-1822.91,0.00021917,2]
[388694178,1759320642631,-1856.17,0.00021917,2]
[388694180,1759320642640,-849.79,0.00021917,2]
[388694182,1759320642649,-403.59386444,0.00021917,2]
[388694184,1759320642659,-500.0,0.00021917,2]
[388694186,1759320642668,-500.0,0.00021917,2]
[388694188,1759320642677,-1822.35,0.00021917,2]
[388694190,1759320642686,-1502.05,0.00021917,2]
[388694192,1759320642696,-500.0,0.00021917,2]
[388694194,1759320642706,-500.0,0.00021917,2]
[388694196,1759320642715,-500.0,0.00021917,2]
[388694198,1759320642724,-2000.78,0.00021917,2]
[388694200,1759320642733,-500.0,0.00021917,2]
[388694202,1759320642743,-4214.41,0.00021917,2]
[388694204,1759320642752,-3396.03,0.00021917,2]
[388694206,1759320642761,-500.0,0.00021917,2]
[388694208,1759320642770,-331.63987656,0.00021917,2]
[388694210,1759320642780,-1762.05,0.00021917,2]
[388694212,1759320642789,-323.8663869,0.00021917,2]
[388694214,1759320642799,-1202.33,0.00021917,2]
[388694216,1759320642808,-4343.13,0.00021917,2]
[388694218,1759320642818,-500.0,0.00021917,2]
[388694220,1759320642827,-2128.17,0.00021917,2]
[388694221,1759320642836,-2317.66,0.00021917,2]
[388694222,1759320642845,-2988.49,0.00021917,2]
[388694223,1759320642854,-508.01,0.00021917,2]
[388694224,1759320642863,-1805.71,0.00021917,2]
[388694225,1759320642872,-882.01,0.00021917,2]
[388694226,1759320642882,-1004.91,0.00021917,2]
[388694227,1759320642891,-500.0,0.00021917,2]
[388694228,1759320642900,-462.5789115,0.00021917,2]
[388694229,1759320642909,-2276.82,0.00021917,2]
[388694230,1759320642918,-3118.2,0.00021917,2]
[388694231,1759320642927,-500.0,0.00021917,2]
[388694232,1759320642936,-500.0,0.00021917,2]
[388694233,1759320642945,-2418.74,0.00021917,2]
[388694234,1759320642954,-3799.97,0.00021917,2]
[388694235,1759320642963,-500.0,0.00021917,2]
[388694237,1759320642972,-1830.65,0.00021917,2]
[388694239,1759320642982,-512.75,0.00021917,2]
[388694241,1759320642991,-12215.98,0.00021917,2]
[388694243,1759320643000,-500.0,0.00021917,2]
[388694246,1759320643010,-500.0,0.00021917,2]
[388694248,1759320643019,-1652.4,0.00021917,2]
[388694250,1759320643028,-500.0,0.00021917,2]
[388694253,1759320643037,-2137.82333475,0.00021917,2]
[388694405,1759320644422,-69.52666525,0.00021917,2]
[388694407,1759320644432,-240.99833477,0.00021917,2]
[388694412,1759320644476,-1959.87615047,0.00021917,2]
[388694417,1759320644515,-306.92551476,0.00021917,2]
[388694419,1759320644524,-145.14451322,0.00021917,2]
[388694422,1759320644538,-698.12457389,0.00021917,2]
[388694424,1759320644549,-314.09091289,0.00021917,2]
[388694426,1759320644559,-836.34,0.00021917,2]
[388694428,1759320644568,-500.0,0.00021917,2]
[388694430,1759320644577,-99.16043401,0.00021917,2]
[388694432,1759320644589,-758.28257985,0.00021917,2]
[388694435,1759320644604,-471.32698614,0.00021917,2]
[388694437,1759320644614,-500.0,0.00021917,2]
[388694439,1759320644623,-500.0,0.00021917,2]
[388694441,1759320644632,-3481.46,0.00021917,2]
[388694443,1759320644642,-2178.36,0.00021917,2]
[388694445,1759320644652,-568.73,0.00021917,2]
[388694447,1759320644661,-848.55,0.00021917,2]
[388694449,1759320644671,-625.32,0.00021917,2]
[388694451,1759320644680,-500.0,0.00021917,2]
[388694453,1759320644689,-752.32,0.00021917,2]
[388694455,1759320644698,-3014.98,0.00021917,2]
[388694457,1759320644707,-3076.02,0.00021917,2]
[388694459,1759320644715,-1873.98,0.00021917,2]
[388694461,1759320644725,-500.0,0.00021917,2]
[388694463,1759320644734,-500.0,0.00021917,2]
[388694465,1759320644744,-2135.0,0.00021917,2]
[388694467,1759320644753,-1307.02,0.00021917,2]
[388694469,1759320644762,-26141.34,0.00021917,2]
[388694471,1759320644773,-2945.35,0.00021917,2]
[388694473,1759320644782,-500.0,0.00021917,2]
[388694475,1759320644791,-3238.95,0.00021917,2]
[388694477,1759320644800,-2558.49,0.00021917,2]
[388694479,1759320644808,-2619.27,0.00021917,2]
[388694481,1759320644818,-616.96,0.00021917,2]
[388694483,1759320644827,-381.39596184,0.00021917,2]
[388694485,1759320644836,-4563.67,0.00021917,2]
[388694487,1759320644845,-500.0,0.00021917,2]
[388694489,1759320644855,-500.0,0.00021917,2]
[388694491,1759320644866,-1797.38,0.00021917,2]
[388694493,1759320644875,-500.0,0.00021917,2]
[388694495,1759320644885,-500.0,0.00021917,2]
[388694497,1759320644894,-928.69,0.00021917,2]
[388694499,1759320644903,-500.0,0.00021917,2]
[388694501,1759320644912,-3338.36,0.00021917,2]
[388694503,1759320644922,-1833.51,0.00021917,2]
[388694505,1759320644931,-500.0,0.00021917,2]
[388694507,1759320644939,-500.0,0.00021917,2]
[388694509,1759320644948,-733.55,0.00021917,2]
[388694511,1759320644958,-2390.34,0.00021917,2]
[388694513,1759320644967,-500.0,0.00021917,2]
[388694515,1759320644976,-500.0,0.00021917,2]
[388694517,1759320644985,-4461.9,0.00021917,2]
[388694519,1759320644996,-500.0,0.00021917,2]
[388694521,1759320645005,-2101.83,0.00021917,2]
[388694523,1759320645015,-500.0,0.00021917,2]
[388694525,1759320645024,-500.0,0.00021917,2]
[388694527,1759320645034,-615.01,0.00021917,2]
[388694529,1759320645043,-500.0,0.00021917,2]
[388694531,1759320645052,-3702.55,0.00021917,2]
[388694534,1759320645062,-500.0,0.00021917,2]
[388694535,1759320645072,-536.53,0.00021917,2]
[388694538,1759320645083,-847.51,0.00021917,2]
[388694539,1759320645094,-500.0,0.00021917,2]
[388694541,1759320645104,-673.72,0.00021917,2]
[388694544,1759320645118,-1025.97,0.00021917,2]
[388694546,1759320645128,-500.0,0.00021917,2]
[388694547,1759320645138,-500.0,0.00021917,2]
[388694549,1759320645147,-2631.11,0.00021917,2]
[388694552,1759320645156,-2588.39,0.00021917,2]
[388694554,1759320645166,-784.56,0.00021917,2]
[388694555,1759320645174,-1828.89,0.00021917,2]
[388694557,1759320645183,-2738.54,0.00021917,2]
[388694559,1759320645191,-500.0,0.00021917,2]
[388694561,1759320645200,-977.99,0.00021917,2]
[388694564,1759320645209,-500.0,0.00021917,2]
[388694566,1759320645218,-643.54,0.00021917,2]
[388694569,1759320645227,-2108.82,0.00021917,2]
[388694571,1759320645235,-4690.48,0.00021917,2]
[388694573,1759320645245,-500.0,0.00021917,2]
[388694575,1759320645254,-1726.8,0.00021917,2]
[388694577,1759320645263,-12281.17,0.00021917,2]
[388694579,1759320645272,-500.54378556,0.00021917,2]
[388694581,1759320645281,-500.0,0.00021917,2]
[388694583,1759320645290,-500.0,0.00021917,2]
[388694585,1759320645299,-3592.91,0.00021917,2]
[388694587,1759320645307,-1337.74,0.00021917,2]
[388694589,1759320645316,-500.0,0.00021917,2]
[388694591,1759320645325,-500.0,0.00021917,2]
[388694593,1759320645334,-500.0,0.00021917,2]
[388694595,1759320645343,-1430.26,0.00021917,2]
[388694597,1759320645352,-500.0,0.00021917,2]
[388694599,1759320645361,-1675.81,0.00021917,2]
[388694602,1759320645370,-4371.19,0.00021917,2]
[388694604,1759320645379,-1516.76,0.00021917,2]
[388694606,1759320645388,-2443.87,0.00021917,2]
[388694608,1759320645397,-500.0,0.00021917,2]
[388694610,1759320645406,-1993.26,0.00021917,2]
[388694613,1759320645416,-547.07,0.00021917,2]
[388694615,1759320645425,-500.0,0.00021917,2]
[388694616,1759320645434,-2250.68,0.00021917,2]
[388694618,1759320645443,-1928.51,0.00021917,2]
[388694620,1759320645456,-3335.07,0.00021917,2]
[388694622,1759320645465,-5862.48,0.00021917,2]
[388694624,1759320645474,-4099.45,0.00021917,2]
[388694626,1759320645483,-2903.31,0.00021917,2]
[388694629,1759320645495,-3220.5,0.00021917,2]
[388694631,1759320645505,-500.0,0.00021917,2]
[388694633,1759320645513,-1402.52,0.00021917,2]
[388694635,1759320645522,-500.0,0.00021917,2]
[388694636,1759320645532,-500.0,0.00021917,2]
[388694638,1759320645542,-1958.74,0.00021917,2]
[388694640,1759320645551,-2888.79,0.00021917,2]
[388694643,1759320645561,-1985.65,0.00021917,2]
[388694644,1759320645570,-500.0,0.00021917,2]
[388694647,1759320645580,-1253.79,0.00021917,2]
[388694649,1759320645590,-1996.0,0.00021917,2]
[388694651,1759320645599,-1108.03,0.00021917,2]
[388694653,1759320645607,-7441.47,0.00021917,2]
[388694655,1759320645616,-711.36,0.00021917,2]
[388694656,1759320645625,-2358.13,0.00021917,2]
[388694659,1759320645634,-2208.16,0.00021917,2]
[388694661,1759320645644,-925.7,0.00021917,2]
[388694663,1759320645653,-500.0,0.00021917,2]
[388694665,1759320645663,-500.0,0.00021917,2]
[388694667,1759320645672,-2668.0,0.00021917,2]
[388694669,1759320645681,-1144.38,0.00021917,2]
[388694671,1759320645690,-500.0,0.00021917,2]
[388694672,1759320645699,-500.0,0.00021917,2]
[388694674,1759320645709,-11685.79,0.00021917,2]
[388694676,1759320645718,-500.0,0.00021917,2]
[388694679,1759320645728,-500.0,0.00021917,2]
[388694680,1759320645737,-8010.06,0.00021917,2]
[388694683,1759320645747,-500.0,0.00021917,2]
[388694685,1759320645757,-1938.63,0.00021917,2]
[388694687,1759320645766,-2380.88,0.00021917,2]
[388694689,1759320645775,-3275.96,0.00021917,2]
[388694691,1759320645786,-500.0,0.00021917,2]
[388694693,1759320645795,-500.0,0.00021917,2]
[388694695,1759320645805,-281.37035731,0.00021917,2]
[388694697,1759320645815,-500.0,0.00021917,2]
[388694699,1759320645824,-6479.01,0.00021917,2]
[388694701,1759320645834,-6377.69,0.00021917,2]
[388694703,1759320645842,-1106.38,0.00021917,2]
[388694705,1759320645851,-500.0,0.00021917,2]
[388694707,1759320645860,-500.0,0.00021917,2]
[388694709,1759320645869,-500.0,0.00021917,2]
[388694711,1759320645878,-4457.62,0.00021917,2]
[388694713,1759320645887,-500.0,0.00021917,2]
[388694715,1759320645896,-10570.13,0.00021917,2]
[388694717,1759320645906,-1374.74,0.00021917,2]
[388694719,1759320645914,-500.0,0.00021917,2]
[388694721,1759320645923,-519.21,0.00021917,2]
[388694723,1759320645933,-1159.31,0.00021917,2]
[388694725,1759320645942,-500.0,0.00021917,2]
[388694727,1759320645951,-3131.85,0.00021917,2]
[388694729,1759320645959,-2718.06,0.00021917,2]
[388694731,1759320645968,-707.65,0.00021917,2]
[388694733,1759320645977,-707.65,0.00021917,2]
[388694735,1759320645987,-882.83,0.00021917,2]
[388694737,1759320645996,-1348.45,0.00021917,2]
[388694739,1759320646005,-707.65,0.00021917,2]
[388694741,1759320646014,-707.65,0.00021917,2]
[388694743,1759320646023,-873.35,0.00021917,2]
[388694745,1759320646031,-500.0,0.00021917,2]
[388694747,1759320646041,-500.0,0.00021917,2]
[388694749,1759320646050,-4331.65,0.00021917,2]
[388694751,1759320646059,-1007.16,0.00021917,2]
[388694753,1759320646068,-1110.1,0.00021917,2]
[388694755,1759320646077,-2292.78,0.00021917,2]
[388694757,1759320646086,-300.0,0.00021917,2]
[388694759,1759320646095,-500.0,0.00021917,2]